[Event "*** Titled Tuesday Blitz"]
[Site "Chess.com"]
[Date "2021.03.02"]
[Round "10"]
[White "dbrankovic68"]
[Black "azikom"]
[Result "1/2-1/2"]
[WhiteElo "2484"]
[BlackElo "2650"]
[TimeControl "180+1"]
[EndTime "11:55:32 PST"]
[Termination "Game drawn by repetition"]

1. e4 {[%clk 0:03:00.1]} 1... c5 {[%clk 0:03:00.3]} 2. Nf3 {[%clk 0:02:59.4]}
2... d6 {[%clk 0:03:00.3]} 3. d4 {[%clk 0:02:58.6]} 3... cxd4 {[%clk 0:03:00.5]}
4. Nxd4 {[%clk 0:02:59.2]} 4... Nf6 {[%clk 0:03:01.4]} 5. Nc3 {[%clk 0:02:59.1]}
5... a6 {[%clk 0:03:00.9]} 6. Bg5 {[%clk 0:02:59.5]} 6... e6 {[%clk 0:03:00]} 7.
f4 {[%clk 0:02:57.8]} 7... Nbd7 {[%clk 0:02:59.7]} 8. Qf3 {[%clk 0:02:57.1]}
8... Be7 {[%clk 0:03:00.1]} 9. O-O-O {[%clk 0:02:56]} 9... Qc7 {[%clk
0:03:00.6]} 10. Kb1 {[%clk 0:02:55.5]} 10... b5 {[%clk 0:02:57.3]} 11. a3 {[%clk
0:02:55.5]} 11... Bb7 {[%clk 0:02:56.7]} 12. g4 {[%clk 0:02:55.4]} 12... O-O
{[%clk 0:02:51.5]} 13. Bxf6 {[%clk 0:02:55]} 13... Bxf6 {[%clk 0:02:51.3]} 14.
g5 {[%clk 0:02:55.6]} 14... Bxd4 {[%clk 0:02:50.9]} 15. Rxd4 {[%clk 0:02:54.5]}
15... e5 {[%clk 0:02:51.1]} 16. Rd2 {[%clk 0:02:47]} 16... exf4 {[%clk
0:02:49.2]} 17. Qxf4 {[%clk 0:02:47.1]} 17... Ne5 {[%clk 0:02:49.8]} 18. h4
{[%clk 0:02:40.6]} 18... Rac8 {[%clk 0:02:41.8]} 19. h5 {[%clk 0:02:39.9]} 19...
Qe7 {[%clk 0:02:40.4]} 20. Be2 {[%clk 0:02:34.5]} 20... f6 {[%clk 0:02:26.8]}
21. g6 {[%clk 0:02:25.5]} 21... h6 {[%clk 0:02:26.8]} 22. Bg4 {[%clk 0:02:19.7]}
22... Rc4 {[%clk 0:02:21]} 23. Be2 {[%clk 0:02:15.5]} 23... Rc5 {[%clk
0:02:18.7]} 24. Rhd1 {[%clk 0:02:15.2]} 24... Rd8 {[%clk 0:02:18.3]} 25. Qe3
{[%clk 0:02:10.6]} 25... Qc7 {[%clk 0:02:12.1]} 26. Bf1 {[%clk 0:02:04.4]} 26...
Kf8 {[%clk 0:02:09.2]} 27. Be2 {[%clk 0:02:00.9]} 27... Ke7 {[%clk 0:02:08.1]}
28. Qd4 {[%clk 0:02:00]} 28... Ba8 {[%clk 0:01:49.3]} 29. Qe3 {[%clk 0:01:56.8]}
29... Qc8 {[%clk 0:01:32.7]} 30. Rd4 {[%clk 0:01:49.5]} 30... Qc7 {[%clk
0:01:29.3]} 31. R4d2 {[%clk 0:01:47.9]} 31... Bb7 {[%clk 0:01:28.8]} 32. Rd4
{[%clk 0:01:47.5]} 32... Ba8 {[%clk 0:01:28.6]} 33. R4d2 {[%clk 0:01:46.7]}
1/2-1/2

[Event "*** Titled Tuesday Blitz"]
[Site "Chess.com"]
[Date "2021.03.02"]
[Round "10"]
[White "Alniro4"]
[Black "j2806"]
[Result "1/2-1/2"]
[WhiteElo "2250"]
[BlackElo "2082"]
[TimeControl "180+1"]
[EndTime "11:55:38 PST"]
[Termination "Game drawn by repetition"]

1. e4 {[%clk 0:02:52.4]} 1... c5 {[%clk 0:02:59.6]} 2. c3 {[%clk 0:02:51.1]}
2... d5 {[%clk 0:02:58.9]} 3. exd5 {[%clk 0:02:50.2]} 3... Qxd5 {[%clk 0:02:59]}
4. d4 {[%clk 0:02:50.3]} 4... Nf6 {[%clk 0:02:54.9]} 5. Nf3 {[%clk 0:02:48.5]}
5... Bg4 {[%clk 0:02:53.7]} 6. Be2 {[%clk 0:02:48.3]} 6... Nc6 {[%clk
0:02:53.2]} 7. h3 {[%clk 0:02:47.4]} 7... Bh5 {[%clk 0:02:53.1]} 8. O-O {[%clk
0:02:43.4]} 8... e6 {[%clk 0:02:53]} 9. Be3 {[%clk 0:02:41]} 9... cxd4 {[%clk
0:02:49.3]} 10. Nxd4 {[%clk 0:02:40.1]} 10... Bxe2 {[%clk 0:02:46.7]} 11. Qxe2
{[%clk 0:02:39]} 11... Nxd4 {[%clk 0:02:42.9]} 12. Bxd4 {[%clk 0:02:36.5]} 12...
Be7 {[%clk 0:02:42.9]} 13. Rd1 {[%clk 0:02:33.7]} 13... Qc6 {[%clk 0:02:42.2]}
14. Nd2 {[%clk 0:02:27.1]} 14... O-O {[%clk 0:02:39.2]} 15. Qc4 {[%clk
0:02:26.1]} 15... Qxc4 {[%clk 0:02:30.3]} 16. Nxc4 {[%clk 0:02:25.1]} 16... b6
{[%clk 0:02:26.8]} 17. Ne5 {[%clk 0:02:22.1]} 17... Nd5 {[%clk 0:02:11.1]} 18.
Nc6 {[%clk 0:02:18.2]} 18... Bf6 {[%clk 0:02:06.9]} 19. Bxf6 {[%clk 0:02:12.3]}
19... Nxf6 {[%clk 0:02:05.9]} 20. c4 {[%clk 0:02:04.4]} 20... g6 {[%clk
0:02:03]} 21. b3 {[%clk 0:01:58.7]} 21... Kg7 {[%clk 0:02:01.6]} 22. Kf1 {[%clk
0:01:52.2]} 22... Rfc8 {[%clk 0:02:00.6]} 23. Ne5 {[%clk 0:01:49.6]} 23... Rd8
{[%clk 0:01:53.4]} 24. Ke2 {[%clk 0:01:44.9]} 24... Ne8 {[%clk 0:01:33.9]} 25.
Nc6 {[%clk 0:01:41.3]} 25... Rdc8 {[%clk 0:01:21.7]} 26. Ne5 {[%clk 0:01:38.3]}
26... Rd8 {[%clk 0:01:18.7]} 27. Nc6 {[%clk 0:01:36.3]} 27... Rdc8 {[%clk
0:01:18.7]} 28. Ne5 {[%clk 0:01:30.8]} 28... Rd8 {[%clk 0:01:18.8]} 1/2-1/2

[Event "*** Titled Tuesday Blitz"]
[Site "Chess.com"]
[Date "2021.03.02"]
[Round "10"]
[White "Sjakkerntobi"]
[Black "Orest_Vovk"]
[Result "1-0"]
[WhiteElo "2349"]
[BlackElo "2473"]
[TimeControl "180+1"]
[EndTime "11:55:40 PST"]
[Termination "Sjakkerntobi won by resignation"]

1. d4 {[%clk 0:03:00.9]} 1... e5 {[%clk 0:02:57.2]} 2. dxe5 {[%clk 0:02:59.8]}
2... Nc6 {[%clk 0:02:56.7]} 3. Nf3 {[%clk 0:02:57.9]} 3... Qe7 {[%clk
0:02:54.9]} 4. Bf4 {[%clk 0:02:56.1]} 4... Qb4+ {[%clk 0:02:54.3]} 5. Bd2 {[%clk
0:02:55.5]} 5... Qxb2 {[%clk 0:02:53.5]} 6. Nc3 {[%clk 0:02:55.9]} 6... Bb4
{[%clk 0:02:52.4]} 7. Rb1 {[%clk 0:02:55.3]} 7... Qxc3 {[%clk 0:02:50.9]} 8.
Bxc3 {[%clk 0:02:55.4]} 8... Bxc3+ {[%clk 0:02:49.8]} 9. Nd2 {[%clk 0:02:56]}
9... Nxe5 {[%clk 0:02:49.9]} 10. e3 {[%clk 0:02:55.8]} 10... Nf6 {[%clk
0:02:48.9]} 11. Rb3 {[%clk 0:02:55.2]} 11... Ba5 {[%clk 0:02:47.6]} 12. Bd3
{[%clk 0:02:52.8]} 12... d5 {[%clk 0:02:46.4]} 13. O-O {[%clk 0:02:52.3]} 13...
O-O {[%clk 0:02:45.7]} 14. Nf3 {[%clk 0:02:51.1]} 14... Nxf3+ {[%clk 0:02:45.2]}
15. Qxf3 {[%clk 0:02:50.5]} 15... c6 {[%clk 0:02:44.1]} 16. h3 {[%clk
0:02:49.9]} 16... b5 {[%clk 0:02:41.4]} 17. Rbb1 {[%clk 0:02:48.3]} 17... a6
{[%clk 0:02:33.7]} 18. e4 {[%clk 0:02:38.1]} 18... Be6 {[%clk 0:02:30.5]} 19. e5
{[%clk 0:02:37.8]} 19... Nd7 {[%clk 0:02:23.5]} 20. Qg3 {[%clk 0:02:37.4]} 20...
Bc3 {[%clk 0:02:17.3]} 21. f4 {[%clk 0:02:36.4]} 21... f5 {[%clk 0:01:49.2]} 22.
exf6 {[%clk 0:02:32.1]} 22... Rxf6 {[%clk 0:01:48.3]} 23. Bxh7+ {[%clk
0:02:26.8]} 23... Kxh7 {[%clk 0:01:47.2]} 24. Qxc3 {[%clk 0:02:27.7]} 24... Bf5
{[%clk 0:01:44]} 25. Rbd1 {[%clk 0:02:21.7]} 25... Be4 {[%clk 0:01:40]} 26. Rfe1
{[%clk 0:02:21.6]} 26... Nb6 {[%clk 0:01:38.3]} 27. Rxe4 {[%clk 0:02:05.4]}
27... dxe4 {[%clk 0:01:37.9]} 28. Qe5 {[%clk 0:02:06.3]} 28... Nd5 {[%clk
0:01:34.4]} 29. Qxe4+ {[%clk 0:02:04.9]} 29... g6 {[%clk 0:01:31.9]} 30. g3
{[%clk 0:01:59.1]} 30... Ra7 {[%clk 0:01:32.1]} 31. c4 {[%clk 0:01:44.3]} 31...
Nc3 {[%clk 0:01:26.8]} 32. Qe3 {[%clk 0:01:44]} 32... Nxd1 {[%clk 0:01:23.7]}
33. Qxa7+ {[%clk 0:01:43.9]} 33... Kh6 {[%clk 0:01:24.3]} 34. Qd4 {[%clk
0:01:43.7]} 1-0

[Event "*** Titled Tuesday Blitz"]
[Site "Chess.com"]
[Date "2021.03.02"]
[Round "10"]
[White "bratkoo"]
[Black "mikolka1985"]
[Result "0-1"]
[WhiteElo "2525"]
[BlackElo "2655"]
[TimeControl "180+1"]
[EndTime "11:55:42 PST"]
[Termination "mikolka1985 won by resignation"]

1. e4 {[%clk 0:02:51.3]} 1... e5 {[%clk 0:02:59.4]} 2. Nf3 {[%clk 0:02:48.5]}
2... Nc6 {[%clk 0:02:58.5]} 3. Bc4 {[%clk 0:02:47.7]} 3... Bc5 {[%clk
0:02:57.6]} 4. c3 {[%clk 0:02:44.8]} 4... Nf6 {[%clk 0:02:56.9]} 5. d4 {[%clk
0:02:44]} 5... exd4 {[%clk 0:02:56.4]} 6. b4 {[%clk 0:02:44]} 6... Bb6 {[%clk
0:02:50.4]} 7. O-O {[%clk 0:02:35.5]} 7... O-O {[%clk 0:02:46.4]} 8. e5 {[%clk
0:02:33.1]} 8... Ne4 {[%clk 0:02:45.5]} 9. cxd4 {[%clk 0:02:31]} 9... d5 {[%clk
0:02:44.5]} 10. exd6 {[%clk 0:02:25.1]} 10... Nxd6 {[%clk 0:02:43.8]} 11. Bd3
{[%clk 0:02:25.2]} 11... Nxb4 {[%clk 0:02:41]} 12. Bg5 {[%clk 0:02:08.9]} 12...
f6 {[%clk 0:02:37.3]} 13. Qb3+ {[%clk 0:02:03.8]} 13... Kh8 {[%clk 0:02:36.6]}
14. Bxf6 {[%clk 0:01:57]} 14... Rxf6 {[%clk 0:02:27.3]} 15. Qxb4 {[%clk
0:01:57.4]} 15... Rxf3 {[%clk 0:02:27.3]} 16. gxf3 {[%clk 0:01:58.1]} 16... Qg5+
{[%clk 0:02:25.7]} 17. Kh1 {[%clk 0:01:58.5]} 17... Qf4 {[%clk 0:02:22.5]} 18.
Nd2 {[%clk 0:01:51.1]} 18... a5 {[%clk 0:02:06.3]} 19. Qa3 {[%clk 0:00:49.1]}
19... Qxd2 {[%clk 0:02:01.5]} 20. Rae1 {[%clk 0:00:50]} 20... Bh3 {[%clk
0:01:58.5]} 21. Rg1 {[%clk 0:00:42.6]} 21... Qxf2 {[%clk 0:01:56.9]} 0-1

[Event "*** Titled Tuesday Blitz"]
[Site "Chess.com"]
[Date "2021.03.02"]
[Round "10"]
[White "BvsN"]
[Black "Na_binci"]
[Result "1-0"]
[WhiteElo "2291"]
[BlackElo "2153"]
[TimeControl "180+1"]
[EndTime "11:55:43 PST"]
[Termination "BvsN won by checkmate"]

1. c4 {[%clk 0:03:00.9]} 1... g6 {[%clk 0:02:59.4]} 2. e4 {[%clk 0:03:00.5]}
2... Bg7 {[%clk 0:03:00.3]} 3. d4 {[%clk 0:03:00.8]} 3... d6 {[%clk 0:03:00.5]}
4. Nc3 {[%clk 0:03:01.3]} 4... Nf6 {[%clk 0:03:01.1]} 5. Nge2 {[%clk 0:03:01.5]}
5... O-O {[%clk 0:03:01.6]} 6. f3 {[%clk 0:03:01.9]} 6... Nc6 {[%clk 0:02:59.5]}
7. Be3 {[%clk 0:03:01.3]} 7... a6 {[%clk 0:02:59.6]} 8. Qd2 {[%clk 0:02:54.6]}
8... Na5 {[%clk 0:02:59.9]} 9. Ng3 {[%clk 0:02:50.6]} 9... b5 {[%clk 0:02:59.3]}
10. Bh6 {[%clk 0:02:40.9]} 10... Nxc4 {[%clk 0:02:45.2]} 11. Bxc4 {[%clk
0:02:40.4]} 11... bxc4 {[%clk 0:02:46.1]} 12. h4 {[%clk 0:02:40.1]} 12... c5
{[%clk 0:02:42.7]} 13. h5 {[%clk 0:02:17.6]} 13... cxd4 {[%clk 0:02:41.2]} 14.
Bxg7 {[%clk 0:02:04.7]} 14... Kxg7 {[%clk 0:02:11.3]} 15. hxg6 {[%clk
0:01:42.2]} 15... dxc3 {[%clk 0:01:45.1]} 16. Qh6+ {[%clk 0:01:31.9]} 16... Kg8
{[%clk 0:01:45.4]} 17. Nh5 {[%clk 0:01:12.7]} 17... Ne8 {[%clk 0:01:05.2]} 18.
Qxh7# {[%clk 0:01:11.8]} 1-0

[Event "*** Titled Tuesday Blitz"]
[Site "Chess.com"]
[Date "2021.03.02"]
[Round "10"]
[White "MendozaDavid2000"]
[Black "RamyresCoelho"]
[Result "1-0"]
[WhiteElo "2335"]
[BlackElo "2080"]
[TimeControl "180+1"]
[EndTime "11:55:48 PST"]
[Termination "MendozaDavid2000 won by resignation"]

1. d4 {[%clk 0:03:00.9]} 1... c5 {[%clk 0:02:48.7]} 2. d5 {[%clk 0:02:58.2]}
2... e6 {[%clk 0:02:46.7]} 3. c4 {[%clk 0:02:58.2]} 3... d6 {[%clk 0:02:46]} 4.
Nc3 {[%clk 0:02:55.9]} 4... Nf6 {[%clk 0:02:45.7]} 5. e4 {[%clk 0:02:51.8]} 5...
e5 {[%clk 0:02:44.7]} 6. Bd3 {[%clk 0:02:50.9]} 6... Be7 {[%clk 0:02:40.5]} 7.
Nge2 {[%clk 0:02:50.5]} 7... O-O {[%clk 0:02:41.4]} 8. O-O {[%clk 0:02:47.8]}
8... Ne8 {[%clk 0:02:32.8]} 9. Ng3 {[%clk 0:02:45.3]} 9... Bg5 {[%clk
0:02:17.9]} 10. f4 {[%clk 0:02:37.4]} 10... exf4 {[%clk 0:02:16.2]} 11. Bxf4
{[%clk 0:02:37.8]} 11... Bxf4 {[%clk 0:02:16.3]} 12. Rxf4 {[%clk 0:02:38.6]}
12... Nd7 {[%clk 0:02:13.8]} 13. Nf5 {[%clk 0:02:33.9]} 13... Ne5 {[%clk
0:02:11.3]} 14. Qd2 {[%clk 0:02:32.1]} 14... Bxf5 {[%clk 0:02:10]} 15. Rxf5
{[%clk 0:02:27.1]} 15... Nf6 {[%clk 0:02:07.2]} 16. Raf1 {[%clk 0:02:27.1]}
16... a6 {[%clk 0:02:00.6]} 17. Be2 {[%clk 0:02:25.5]} 17... Kh8 {[%clk
0:01:14.1]} 18. Rxf6 {[%clk 0:02:04.9]} 18... gxf6 {[%clk 0:01:13.3]} 19. Nd1
{[%clk 0:02:05.1]} 19... Rg8 {[%clk 0:01:09.9]} 20. Ne3 {[%clk 0:02:04.8]} 20...
b5 {[%clk 0:01:03.1]} 21. b3 {[%clk 0:02:03.4]} 21... bxc4 {[%clk 0:01:02.9]}
22. bxc4 {[%clk 0:02:02.9]} 22... Rg7 {[%clk 0:00:50.7]} 23. Nf5 {[%clk
0:02:02.3]} 23... Rg5 {[%clk 0:00:48.8]} 24. h4 {[%clk 0:02:00.8]} 24... Rg3
{[%clk 0:00:46.4]} 25. Nxg3 {[%clk 0:02:00]} 25... Qd7 {[%clk 0:00:45.5]} 26.
Qh6 {[%clk 0:01:57.1]} 1-0

[Event "*** Titled Tuesday Blitz"]
[Site "Chess.com"]
[Date "2021.03.02"]
[Round "10"]
[White "Lion-Al-Messi"]
[Black "AliKa2810"]
[Result "0-1"]
[WhiteElo "2441"]
[BlackElo "2562"]
[TimeControl "180+1"]
[EndTime "11:56:01 PST"]
[Termination "AliKa2810 won by resignation"]

1. d4 {[%clk 0:03:00.9]} 1... Nf6 {[%clk 0:02:55.1]} 2. Nf3 {[%clk 0:03:01.8]}
2... g6 {[%clk 0:02:50.9]} 3. Nc3 {[%clk 0:03:02]} 3... d5 {[%clk 0:02:50.2]} 4.
Bg5 {[%clk 0:03:02.1]} 4... Bg7 {[%clk 0:02:49.5]} 5. e3 {[%clk 0:03:01.1]} 5...
h6 {[%clk 0:02:44.6]} 6. Bxf6 {[%clk 0:02:59.9]} 6... Bxf6 {[%clk 0:02:44.9]} 7.
Bd3 {[%clk 0:03:00.8]} 7... c5 {[%clk 0:02:37]} 8. O-O {[%clk 0:03:00.4]} 8...
Nc6 {[%clk 0:02:33.4]} 9. dxc5 {[%clk 0:03:00.2]} 9... O-O {[%clk 0:02:32.4]}
10. e4 {[%clk 0:02:58.5]} 10... Bxc3 {[%clk 0:02:05.6]} 11. bxc3 {[%clk
0:02:59.4]} 11... dxe4 {[%clk 0:02:05.6]} 12. Bxe4 {[%clk 0:03:00.2]} 12... Qa5
{[%clk 0:02:02]} 13. Qd2 {[%clk 0:02:59.5]} 13... Kg7 {[%clk 0:01:55.1]} 14.
Bxc6 {[%clk 0:02:59.7]} 14... bxc6 {[%clk 0:01:55.3]} 15. Qd4+ {[%clk
0:03:00.6]} 15... f6 {[%clk 0:01:53.6]} 16. Rfe1 {[%clk 0:03:01]} 16... e5
{[%clk 0:01:39.3]} 17. Nxe5 {[%clk 0:03:01.1]} 17... fxe5 {[%clk 0:01:38.8]} 18.
Rxe5 {[%clk 0:03:02]} 18... Kf7 {[%clk 0:00:51.1]} 19. Rae1 {[%clk 0:02:54.7]}
19... Qd8 {[%clk 0:00:34.2]} 20. Re7+ {[%clk 0:02:49.5]} 20... Qxe7 {[%clk
0:00:33.5]} 21. Rxe7+ {[%clk 0:02:50.4]} 21... Kxe7 {[%clk 0:00:34]} 22. Qg7+
{[%clk 0:02:50.5]} 22... Rf7 {[%clk 0:00:33.1]} 23. Qxg6 {[%clk 0:02:49.4]}
23... Be6 {[%clk 0:00:32.7]} 24. Qxh6 {[%clk 0:02:48.5]} 24... Rg8 {[%clk
0:00:31.8]} 25. Qh4+ {[%clk 0:02:48]} 25... Kd7 {[%clk 0:00:30.7]} 26. Qd4+
{[%clk 0:02:48]} 26... Kc8 {[%clk 0:00:28]} 27. g3 {[%clk 0:02:41.6]} 27... Bd5
{[%clk 0:00:27.6]} 28. c4 {[%clk 0:02:39.2]} 28... Bf3 {[%clk 0:00:26.4]} 29.
Qe3 {[%clk 0:02:38.4]} 29... Rd8 {[%clk 0:00:24.8]} 30. Qe6+ {[%clk 0:02:27.8]}
30... Kb8 {[%clk 0:00:24.7]} 0-1

[Event "*** Titled Tuesday Blitz"]
[Site "Chess.com"]
[Date "2021.03.02"]
[Round "10"]
[White "LileKoridze"]
[Black "Ginger_GM"]
[Result "1-0"]
[WhiteElo "2450"]
[BlackElo "2621"]
[TimeControl "180+1"]
[EndTime "11:56:05 PST"]
[Termination "LileKoridze won by checkmate"]

1. d4 {[%clk 0:03:00.9]} 1... e6 {[%clk 0:02:59.3]} 2. c4 {[%clk 0:03:00.5]}
2... f5 {[%clk 0:02:58.2]} 3. g3 {[%clk 0:02:57.7]} 3... Nf6 {[%clk 0:02:57.4]}
4. Bg2 {[%clk 0:02:56]} 4... Be7 {[%clk 0:02:57]} 5. Nh3 {[%clk 0:02:54.2]} 5...
O-O {[%clk 0:02:56.7]} 6. O-O {[%clk 0:02:53.9]} 6... d6 {[%clk 0:02:56.5]} 7.
Nf4 {[%clk 0:02:46.4]} 7... c6 {[%clk 0:02:55.2]} 8. Nc3 {[%clk 0:02:36.5]} 8...
e5 {[%clk 0:02:51.8]} 9. dxe5 {[%clk 0:02:35.9]} 9... dxe5 {[%clk 0:02:52]} 10.
Nd3 {[%clk 0:02:36.6]} 10... e4 {[%clk 0:02:44.8]} 11. Nf4 {[%clk 0:02:35.2]}
11... Qe8 {[%clk 0:02:41.8]} 12. Qc2 {[%clk 0:02:29.8]} 12... Na6 {[%clk
0:02:38.8]} 13. a3 {[%clk 0:02:28.9]} 13... g5 {[%clk 0:02:36.9]} 14. Nh3 {[%clk
0:02:28.8]} 14... Qh5 {[%clk 0:02:36.5]} 15. Bxg5 {[%clk 0:02:18.7]} 15... f4
{[%clk 0:02:27.6]} 16. Bxf6 {[%clk 0:02:16.2]} 16... Rxf6 {[%clk 0:01:48]} 17.
Nxf4 {[%clk 0:02:08]} 17... Rxf4 {[%clk 0:01:47.8]} 18. gxf4 {[%clk 0:02:08.9]}
18... Kh8 {[%clk 0:01:36.9]} 19. Qxe4 {[%clk 0:02:07.9]} 19... Bf6 {[%clk
0:01:35.6]} 20. Bf3 {[%clk 0:01:59.3]} 20... Qf7 {[%clk 0:01:21.2]} 21. Kh1
{[%clk 0:01:57.3]} 21... Nc5 {[%clk 0:01:20.7]} 22. Qc2 {[%clk 0:01:56.5]} 22...
Be7 {[%clk 0:00:47.5]} 23. Ne4 {[%clk 0:01:48.1]} 23... Bf5 {[%clk 0:00:41.8]}
24. Qc3+ {[%clk 0:01:47.4]} 24... Kg8 {[%clk 0:00:37.3]} 25. Rg1+ {[%clk
0:01:44.8]} 25... Kf8 {[%clk 0:00:37.5]} 26. Qh8+ {[%clk 0:01:43.9]} 26... Qg8
{[%clk 0:00:35.9]} 27. Qxg8# {[%clk 0:01:43.5]} 1-0

[Event "*** Titled Tuesday Blitz"]
[Site "Chess.com"]
[Date "2021.03.02"]
[Round "10"]
[White "ViktoriyaTarasova"]
[Black "KerryStead"]
[Result "1-0"]
[WhiteElo "2283"]
[BlackElo "2027"]
[TimeControl "180+1"]
[EndTime "11:56:16 PST"]
[Termination "ViktoriyaTarasova won on time"]

1. d4 {[%clk 0:03:00.9]} 1... c5 {[%clk 0:02:58.6]} 2. d5 {[%clk 0:02:59.7]}
2... f5 {[%clk 0:02:56.6]} 3. g3 {[%clk 0:02:58.7]} 3... g6 {[%clk 0:02:54.5]}
4. Bg2 {[%clk 0:02:59]} 4... d6 {[%clk 0:02:52.6]} 5. Nc3 {[%clk 0:02:57]} 5...
Bg7 {[%clk 0:02:51]} 6. e4 {[%clk 0:02:56.9]} 6... fxe4 {[%clk 0:02:47.8]} 7.
Nxe4 {[%clk 0:02:56.1]} 7... Nf6 {[%clk 0:02:45.2]} 8. Ng5 {[%clk 0:02:54.4]}
8... h6 {[%clk 0:02:40.2]} 9. Ne6 {[%clk 0:02:53.9]} 9... Bxe6 {[%clk 0:02:39]}
10. dxe6 {[%clk 0:02:54.6]} 10... Qc8 {[%clk 0:02:36.1]} 11. Ne2 {[%clk
0:02:53.4]} 11... Nc6 {[%clk 0:02:33.5]} 12. Qd3 {[%clk 0:02:50.8]} 12... Qxe6
{[%clk 0:02:16.7]} 13. Qxg6+ {[%clk 0:02:49.8]} 13... Qf7 {[%clk 0:02:16.5]} 14.
Qd3 {[%clk 0:02:42.4]} 14... a6 {[%clk 0:01:50.1]} 15. O-O {[%clk 0:02:41.4]}
15... O-O-O {[%clk 0:01:46.3]} 16. Nf4 {[%clk 0:02:39.4]} 16... e5 {[%clk
0:01:36.8]} 17. Nd5 {[%clk 0:02:31.6]} 17... Nxd5 {[%clk 0:01:27.4]} 18. Bxd5
{[%clk 0:02:30.3]} 18... Qd7 {[%clk 0:01:26.3]} 19. a3 {[%clk 0:02:21.5]} 19...
Rhf8 {[%clk 0:01:19.1]} 20. Qc4 {[%clk 0:02:16.5]} 20... Rde8 {[%clk 0:00:45.8]}
21. Be3 {[%clk 0:02:15.7]} 21... Nd4 {[%clk 0:00:32.4]} 22. Kg2 {[%clk
0:02:07.3]} 22... b5 {[%clk 0:00:29.8]} 23. Qd3 {[%clk 0:02:03.8]} 1-0

[Event "*** Titled Tuesday Blitz"]
[Site "Chess.com"]
[Date "2021.03.02"]
[Round "10"]
[White "sergeikim"]
[Black "Susal_De_Silva"]
[Result "0-1"]
[WhiteElo "2535"]
[BlackElo "2659"]
[TimeControl "180+1"]
[EndTime "11:56:23 PST"]
[Termination "Susal_De_Silva won by resignation"]

1. d4 {[%clk 0:03:00.9]} 1... Nf6 {[%clk 0:02:59.8]} 2. c4 {[%clk 0:03:00.7]}
2... e6 {[%clk 0:03:00.3]} 3. Nc3 {[%clk 0:03:00.5]} 3... Bb4 {[%clk 0:03:00.4]}
4. Qc2 {[%clk 0:03:00.4]} 4... c5 {[%clk 0:02:58.3]} 5. dxc5 {[%clk 0:02:59.8]}
5... Bxc5 {[%clk 0:02:59.2]} 6. Nf3 {[%clk 0:02:59.4]} 6... O-O {[%clk
0:02:59.7]} 7. e3 {[%clk 0:02:53]} 7... d6 {[%clk 0:02:59.8]} 8. Bd3 {[%clk
0:02:52.6]} 8... a6 {[%clk 0:03:00.1]} 9. O-O {[%clk 0:02:52]} 9... Nc6 {[%clk
0:03:00.7]} 10. a3 {[%clk 0:02:51.2]} 10... Qe7 {[%clk 0:02:59.1]} 11. b4 {[%clk
0:02:49.7]} 11... Ba7 {[%clk 0:02:59.5]} 12. Bb2 {[%clk 0:02:49.7]} 12... h6
{[%clk 0:02:57.2]} 13. Ne4 {[%clk 0:02:46.3]} 13... Nxe4 {[%clk 0:02:56.8]} 14.
Bxe4 {[%clk 0:02:45.9]} 14... e5 {[%clk 0:02:56.9]} 15. Bf5 {[%clk 0:02:21.8]}
15... g6 {[%clk 0:02:52]} 16. Bxc8 {[%clk 0:02:15.3]} 16... Raxc8 {[%clk
0:02:52.9]} 17. Rfd1 {[%clk 0:02:10.4]} 17... f5 {[%clk 0:02:52.9]} 18. Rac1
{[%clk 0:02:00.8]} 18... Bb8 {[%clk 0:02:52.3]} 19. Qd3 {[%clk 0:01:34.6]} 19...
Kh7 {[%clk 0:02:44.6]} 20. Qd5 {[%clk 0:01:29.9]} 20... f4 {[%clk 0:02:36.2]}
21. exf4 {[%clk 0:01:23.6]} 21... Rxf4 {[%clk 0:02:37.1]} 22. c5 {[%clk
0:01:22.7]} 22... dxc5 {[%clk 0:02:31.4]} 23. Qxc5 {[%clk 0:01:22.2]} 23... Qxc5
{[%clk 0:02:23.1]} 24. Rxc5 {[%clk 0:01:21.1]} 24... e4 {[%clk 0:02:02.9]} 25.
Rd7+ {[%clk 0:01:15.1]} 25... Kg8 {[%clk 0:02:02.7]} 26. Nd4 {[%clk 0:00:54.6]}
26... Ba7 {[%clk 0:01:59.4]} 27. Nxc6 {[%clk 0:00:43.8]} 27... Bxc5 {[%clk
0:01:57.4]} 28. Rxb7 {[%clk 0:00:19.7]} 28... Bxf2+ {[%clk 0:01:55.1]} 0-1

[Event "*** Titled Tuesday Blitz"]
[Site "Chess.com"]
[Date "2021.03.02"]
[Round "10"]
[White "ARTHURMOTIVATOR"]
[Black "night_player"]
[Result "1-0"]
[WhiteElo "2322"]
[BlackElo "2170"]
[TimeControl "180+1"]
[EndTime "11:56:24 PST"]
[Termination "ARTHURMOTIVATOR won by checkmate"]

1. e4 {[%clk 0:03:00.9]} 1... c5 {[%clk 0:03:00]} 2. b3 {[%clk 0:02:58.2]} 2...
e5 {[%clk 0:02:54.9]} 3. Bb2 {[%clk 0:02:57]} 3... d6 {[%clk 0:02:55.4]} 4. Bb5+
{[%clk 0:02:54.4]} 4... Bd7 {[%clk 0:02:55]} 5. Bxd7+ {[%clk 0:02:54.1]} 5...
Nxd7 {[%clk 0:02:50.2]} 6. Ne2 {[%clk 0:02:53.8]} 6... Be7 {[%clk 0:02:50.6]} 7.
O-O {[%clk 0:02:53.2]} 7... Ngf6 {[%clk 0:02:51.1]} 8. d3 {[%clk 0:02:45.9]}
8... O-O {[%clk 0:02:50.4]} 9. h3 {[%clk 0:02:44.3]} 9... b5 {[%clk 0:02:49.8]}
10. f4 {[%clk 0:02:39.3]} 10... exf4 {[%clk 0:02:45.9]} 11. Nxf4 {[%clk
0:02:40.2]} 11... Ne5 {[%clk 0:02:39.3]} 12. Nd2 {[%clk 0:02:38.3]} 12... Ng6
{[%clk 0:02:33]} 13. Nh5 {[%clk 0:02:17.7]} 13... Nxh5 {[%clk 0:02:13.1]} 14.
Qxh5 {[%clk 0:02:18.6]} 14... a5 {[%clk 0:01:50.6]} 15. a4 {[%clk 0:02:14]}
15... bxa4 {[%clk 0:01:44.8]} 16. Rxa4 {[%clk 0:02:12.4]} 16... Qb6 {[%clk
0:01:36.9]} 17. Nc4 {[%clk 0:02:08.9]} 17... Qc7 {[%clk 0:01:32.2]} 18. Ne3
{[%clk 0:02:05.4]} 18... Bd8 {[%clk 0:01:18.3]} 19. Nf5 {[%clk 0:01:42.7]} 19...
Ne5 {[%clk 0:01:13.5]} 20. Nxd6 {[%clk 0:01:29.5]} 20... f6 {[%clk 0:00:33.8]}
21. Bxe5 {[%clk 0:01:22.2]} 21... fxe5 {[%clk 0:00:32.2]} 22. Rxf8+ {[%clk
0:01:18]} 22... Kxf8 {[%clk 0:00:33.1]} 23. Qe8# {[%clk 0:01:18.1]} 1-0